Cogmind - Beta 15 @@@ ROGUE MODE // 2025.10.01 @ 22:25:16 Player: Bikerider58 Result: Self-destructed Performance ------------- Evolutions (9) 4500 Regions Visited (24) 4800 Robots Destroyed (270) 1350 Value Destroyed (11502) 11502 Prototype IDs (45) 900 Alien Tech Used (3) 600 Bonus (6736) 6736 TOTAL SCORE: 30388 Bonus ------- High Alert Combat Kills 562 Follower Combat Kills 2089 Network Hubs Disabled 200 Registered with UFD 300 Met Optimus in HQ 500 Met Zhirov 300 Built Enhanced Grunts 300 A7 Reached Mainframe 300 Met R17 at Cetus 500 Met R17 at Research 2000 Friendly Fire -315 Cogmind --------- Core Integrity 1407/1600 Matter 89/300 Energy 350/350 System Corruption 15% Temperature Cool (-200) Movement Core (1850) Ox36 Location -1/Access Parts ------- > --- POWER (3) -------- Quantum Reactor > --- PROPULSION (6) --- Centrium Leg Centrium Wheel > --- UTILITY (12) ----- Advanced Cryofiber Web Huge Storage Unit Advanced Signal Interpreter Advanced Terrain Scan Processor Advanced Targeting Computer Improved Target Analyzer Graphene Brace > --- WEAPON (4) ------- Advanced Variable Charge Gun Shock Maul > --- INVENTORY (25) --- Biometal Medium Treads Compact Wheel Compact Wheel Experimental Sensor Array Quantum Capacitor Assault Drone Bay (2/2) Gamma Rifle Gamma Rifle Cooled Plasma Rifle Advanced Variable Charge Gun Advanced Plasma Cannon Rocket Launcher Peak State ------------ > --- POWER ------------ Fusion Reactor Quantum Reactor Light Quantum Reactor > --- PROPULSION ------- Centrium Heavy Treads Myomer Leg Centrium Leg Centrium Wheel > --- UTILITY ---------- Advanced Cryofiber Web Advanced Heat Sink Huge Storage Unit Experimental Sensor Array Advanced Signal Interpreter Advanced Terrain Scanner Advanced Terrain Scan Processor Advanced Targeting Computer Improved Phase Shifter Centrium Medium Armor Plating Graphene Brace Advanced Force Field > --- WEAPON ----------- Advanced Variable Charge Gun Advanced KE Penetrator Hypervelocity Railgun Hypervelocity Railgun > --- INVENTORY -------- Micro Antimatter Reactor Improved Target Analyzer Quantum Capacitor Layered Heavy Armor Plating Advanced Focal Shield Assault Drone Bay Gamma Rifle Gamma Rifle Cooled Plasma Rifle Advanced Variable Charge Gun Advanced Variable Charge Gun Advanced Plasma Cannon Heavy Hardcell Cannon Rocket Launcher Shock Maul [Rating: 181] Favorites ----------- Power Enhanced Nuclear Core Engine Reinforced Ion Engine Power Core Enhanced Nuclear Core Reactor Quantum Reactor Propulsion Armored Treads Treads Armored Treads Leg Aluminum Leg Wheel Compact Wheel Utility Huge Storage Unit Device Advanced Heat Sink Storage Huge Storage Unit Processor Improved Salvage Targeting Computer Hackware Improved Hacking Suite Protection Centrium Medium Armor Plating Weapon Plasma Cannon Energy Gun High-powered Field Laser Energy Cannon Plasma Cannon Ballistic Gun Advanced KE Penetrator Ballistic Cannon Bore Cannon Launcher Rocket Launcher Special Weapon CPS Tube Impact Weapon Shock Maul Build | -11 -10 -10 -9 -9 -9 -8 -8 -7 -7 -7 -7 -5 -5 -5 -5 -5 -4 -4 -4 -4 -3 -3 -2 -1 ------- Run | Yrd Mat Min Mat Min Exi Min Mat Fac Sto Rec Scr Fac Ext Cet Arc Hub Fac Upp Upp Zhi Pro Res Res Acc Slots Evolved 18 | . . . 2 . . . 2 2 . . . 4 . . . . 2 . . . . 2 2 2 Power 2 | . . . . . . . . 1 . . . . . . . . . . . . . . 1 . Propulsion 4 | . . . . . . . 1 . . . . 3 . . . . . . . . . . . . Utility 10 | . . . 1 . . . 1 1 . . . 1 . . . . 2 . . . . 2 . 2 Weapon 2 | . . . 1 . . . . . . . . . . . . . . . . . . . 1 . Parts Attached 193 | 5 15 4 15 . . 3 12 15 14 5 5 13 11 13 5 3 22 1 . 4 . 8 10 10 Power 21 | 1 3 . 1 . . 1 . 3 2 . . . . 2 . . 3 . . 1 . . 2 2 Engine 7 | 1 3 . 1 . . 1 . 1 . . . . . . . . . . . . . . . . Core 5 | . . . . . . . . 2 2 . . . . . . . 1 . . . . . . . Reactor 9 | . . . . . . . . . . . . . . 2 . . 2 . . 1 . . 2 2 Propulsion 40 | 2 3 . 3 . . 2 4 3 3 1 2 3 3 2 . . 3 . . . . . 4 2 Treads 30 | . 2 . 3 . . 2 4 3 3 1 1 3 3 2 . . 3 . . . . . . . Leg 6 | 2 1 . . . . . . . . . . . . . . . . . . . . . 3 . Wheel 4 | . . . . . . . . . . . 1 . . . . . . . . . . . 1 2 Hover . | . . . . . . . . . . . . . . . . . . . . . . . . . Flight . | . . . . . . . . . . . . . . . . . . . . . . . . . Utility 81 | 1 4 1 5 . . . 4 5 5 3 1 9 3 4 3 3 13 1 . 3 . 5 3 5 Device 38 | . 2 . 4 . . . 3 1 1 . 1 3 2 2 3 1 7 . . 2 . 1 2 3 Storage 3 | 1 1 . . . . . . 1 . . . . . . . . . . . . . . . . Processor 13 | . . . 1 . . . 1 . 3 . . 1 . . . . 4 1 . . . 1 . 1 Hackware 9 | . . . . . . . . 1 . 1 . 2 . . . 2 . . . . . 2 1 . Protection 18 | . 1 1 . . . . . 2 1 2 . 3 1 2 . . 2 . . 1 . 1 . 1 Artifact . | . . . . . . . . . . . . . . . . . . . . . . . . . Weapon 51 | 1 5 3 6 . . . 4 4 4 1 2 1 5 5 2 . 3 . . . . 3 1 1 Energy Gun 13 | . 3 1 2 . . . . 1 2 . . . . 2 . . 2 . . . . . . . Energy Cannon 13 | . . . 2 . . . 3 1 1 1 . 1 2 . . . 1 . . . . 1 . . Ballistic Gun 13 | 1 2 . 1 . . . . 1 . . 2 . . 1 2 . . . . . . 2 1 . Ballistic Cannon 6 | . . 1 1 . . . . . . . . . 3 . . . . . . . . . . 1 Launcher 3 | . . 1 . . . . 1 1 . . . . . . . . . . . . . . . . Special Weapon 2 | . . . . . . . . . . . . . . 2 . . . . . . . . . . Impact Weapon 1 | . . . . . . . . . 1 . . . . . . . . . . . . . . . Slashing Weapon . | . . . . . . . . . . . . . . . . . . . . . . . . . Piercing Weapon . | . . . . . . . . . . . . . . . . . . . . . . . . . Special Melee Weapon . | . . . . . . . . . . . . . . . . . . . . . . . . . Unidentified Prototypes 17 | . . . 1 . . . . 2 1 . . . . 4 . 1 1 . 1 5 . . . 1 Corrupted Parts 2 | . . . . . . . . . . . . . . 2 . . . . . . . . . . System Corruption 10 | . . . . . . . . . . . . . . 10 . . . . . . . . . . Parts Lost 41 | . 1 . 3 . . . 1 2 1 1 . . 1 1 . . 7 . 1 . . 2 5 15 Power 6 | . . . . . . . . . . . . . . . . . 2 . . . . . . 4 Propulsion 11 | . 1 . 1 . . . . 1 . . . . 1 . . . 2 . . . . . 2 3 Utility 15 | . . . 1 . . . . . 1 . . . . . . . 3 . 1 . . 1 3 5 Weapon 9 | . . . 1 . . . 1 1 . 1 . . . 1 . . . . . . . 1 . 3 Highest Loss Streak 15 | . 1 . 2 . . . 1 1 1 1 . . 1 1 . . 2 . 1 . . 1 3 15 To Critical Strikes 2 | . . . 1 . . . . . . . . . 1 . . . . . . . . . . . Average Backups 19 | 1 7 15 14 15 15 15 14 18 24 24 23 22 22 21 21 21 20 21 21 22 22 20 19 15 Power 1 | . 1 1 1 1 1 1 1 1 1 1 1 1 1 1 2 2 1 1 1 1 1 1 . 1 Propulsion 2 | . 1 4 3 3 3 3 3 4 4 3 3 2 1 1 2 2 1 1 1 1 1 1 1 2 Utility 8 | . 2 4 3 5 5 5 4 5 9 10 10 8 8 7 8 10 11 14 14 14 15 11 9 4 Weapon 6 | 1 1 3 5 6 6 6 5 7 9 9 8 8 9 9 9 7 6 5 5 5 5 6 7 7 Tool/Special . | . . . . . . . . . . . . . . . . . . . . . . . . . Unused Backups 57 | . 5 5 5 . . . 3 6 2 . 2 4 . 8 2 . . 1 1 1 . 4 . 8 Power 6 | . . 1 1 . . . . 2 . . . 1 . 1 . . . . . . . . . . Propulsion 10 | . 2 2 . . . . 2 . . . . . . 1 . . . . . . . . . 3 Utility 12 | . 1 1 . . . . 1 1 . . 1 . . 2 . . . 1 1 . . 2 . 1 Weapon 28 | . 2 1 3 . . . . 3 2 . 1 3 . 4 2 . . . . 1 . 2 . 4 Tool/Special 1 | . . . 1 . . . . . . . . . . . . . . . . . . . . . Average Slot Usage (%) 93 | . 94 100 99 100 100 100 99 99 97 99 97 92 93 92 87 87 82 84 84 67 75 81 85 85 Engine 3 | . 13 14 11 11 11 11 9 11 1 . . . . . . . . . . . . . . . Core 5 | . . . . . . . . 3 13 15 15 11 11 4 . . . . . . . . . . Reactor 2 | . . . . . . . . . . . . . . 5 11 11 9 10 10 10 10 9 13 11 Treads 20 | . 5 28 22 22 22 22 26 22 22 23 22 34 35 32 23 23 16 15 15 15 15 13 10 3 Leg 1 | . 21 . . . . . . . . . . . . . . . . . . . . . 1 4 Device 15 | . 8 13 17 22 22 22 26 23 18 15 15 14 16 17 16 9 14 10 10 7 10 18 15 19 Storage 7 | . 14 14 11 11 11 11 9 7 7 7 7 5 5 5 5 5 5 5 5 5 5 4 4 4 Processor 5 | . . . 2 . . . . . 3 7 7 3 . . . . 6 14 15 15 15 11 13 15 Protection 5 | . 1 . 1 . . . . 6 6 6 4 1 5 6 11 11 9 10 10 10 10 8 4 3 Energy Gun 4 | . 7 . 14 . . . . 1 8 7 4 . . 1 . . 3 15 15 1 2 2 1 3 Energy Cannon 8 | . . . 4 22 22 22 26 20 12 15 12 4 4 . . . 1 . . . 5 2 2 . Ballistic Gun 6 | . 19 26 6 11 11 11 . . . . 4 11 9 2 13 7 7 . . . . 2 12 4 Peak Build Rating 181 | 5 8 17 25 23 23 23 40 55 59 55 60 84 87 132 137 140 159 152 151 150 153 167 177 181 Average Rating 74 | 4 6 8 22 23 23 23 37 46 55 54 57 75 82 102 134 132 153 150 149 126 149 159 167 162 On Entrance 80 | . 5 8 17 23 23 23 23 38 55 54 55 58 84 86 132 131 140 150 148 150 146 153 159 157 Naked Turns . | . . . . . . . . . . . . . . . . . . . . . . . . . Heaviest Build 197 | 10 28 38 48 47 47 47 51 127 122 120 120 139 139 161 166 166 164 148 147 148 153 156 182 197 Greatest Support 230 | 20 40 40 40 40 40 40 84 84 84 60 68 129 151 210 210 210 230 230 230 230 230 230 230 48 Greatest Overweight (x) 32 | 2 3 . 1 1 1 1 . 1 32 1 14 1 1 . . . 1 . . . . . 11 11 Average Overweight (x) . | . . . . 1 1 1 . . 1 1 1 . . . . . . . . . . . 3 3 Largest Inventory Capacity 25 | 8 15 15 15 15 15 15 15 25 25 25 25 25 25 25 25 25 25 25 25 25 25 25 25 25 Average Capacity 21 | 7 9 15 15 15 15 15 15 20 25 25 25 25 25 25 25 25 25 25 25 25 25 25 25 25 Most Carried 25 | 3 15 15 15 15 15 15 15 25 25 25 25 25 25 25 25 25 25 25 25 25 25 25 25 23 Average Carried 20 | 1 7 14 14 15 15 15 14 18 24 24 24 24 24 24 24 24 23 24 24 24 24 23 23 17 Final Capacity 25 | 8 15 15 15 15 15 15 15 25 25 25 25 25 25 25 25 25 25 25 25 25 25 25 25 25 Final Carried 25 | 2 15 15 15 15 15 15 15 25 25 24 25 25 25 25 25 25 25 25 25 25 24 25 23 14 Class Distribution -------------------- 22% | Commander-Tank 11% | Mutant 11% | Scavenger-Tank 10% | Scavenger-Skirmisher 8% | Gunner 7% | Commander-Scrapper 7% | Tank 4% | Scavenger-Gunner 4% | Scavenger-Mutant 3% | Scrapper Dominant Class ---------------- Mutant | -10/Materials Mutant | -10/Mines Scavenger-Gunner | -9/Materials Gunner | -9/Mines Gunner | -9/Exiles Scavenger-Gunner | -8/Mines Gunner | -8/Materials Tank | -7/Factory Commander-Tank | -7/Storage Commander-Tank | -7/Recycling Commander-Tank | -7/Scraptown Commander-Scrapper | -5/Factory Scrapper | -5/Extension Scavenger-Tank | -5/Cetus Scavenger-Tank | -5/Archives Scavenger-Tank | -5/Hub_04(d) Scavenger-Tank | -4/Factory Scavenger-Skirmisher | -4/Upper Caves Scavenger-Skirmisher | -4/Upper Caves Scavenger-Mutant | -4/Zhirov Scavenger-Skirmisher | -3/Proximity Caves Scavenger-Assassin | -3/Research Scavenger-Tank | -2/Research Scavenger-Skirmisher | -1/Access Resources | -11 -10 -10 -9 -9 -9 -8 -8 -7 -7 -7 -7 -5 -5 -5 -5 -5 -4 -4 -4 -4 -3 -3 -2 -1 ----------- Run | Yrd Mat Min Mat Min Exi Min Mat Fac Sto Rec Scr Fac Ext Cet Arc Hub Fac Upp Upp Zhi Pro Res Res Acc Matter Collected 7434 | 318 415 165 539 29 . 146 263 298 305 89 30 355 387 395 248 135 1574 69 166 . 362 335 393 418 Remotely 619 | . . . . . . . . . . . . . . . . . 619 . . . . . . . Salvage Created 12398 | 95 741 101 1039 . . 380 1279 788 816 339 . 485 690 365 234 223 2136 . 377 . 456 435 824 595 Parts 638 | 4 44 14 64 . . 16 81 44 25 14 . 19 43 16 16 6 100 . 17 . 15 21 54 25 Haulers Intercepted 7 | . 2 . 1 . . . 1 1 . . . 1 . . . . 1 . . . . . . . Recyclers Shooed 13 | 1 3 . 3 . . . 1 . 1 . . . 1 . . . 1 . . . . . . 2 Parts Field Recycled . | . . . . . . . . . . . . . . . . . . . . . . . . . Retrieved Matter . | . . . . . . . . . . . . . . . . . . . . . . . . . Parts Self-Destructed 18 | . . . . . . . . . . . . . . . . . . . 16 . 2 . . . Prevented 13 | . . . . . . . . . . . . . . . . . . . . . 13 . . . Kills | -11 -10 -10 -9 -9 -9 -8 -8 -7 -7 -7 -7 -5 -5 -5 -5 -5 -4 -4 -4 -4 -3 -3 -2 -1 ------- Run | Yrd Mat Min Mat Min Exi Min Mat Fac Sto Rec Scr Fac Ext Cet Arc Hub Fac Upp Upp Zhi Pro Res Res Acc Combat Hostiles Destroyed 206 | . 14 7 25 . . 6 29 15 7 5 . 8 13 5 . 3 28 . 7 . 6 6 10 12 Melee 1 | . . . . . . . . . . . . . . . . . 1 . . . . . . . Guns 89 | . 14 3 15 . . 2 . 2 2 1 . 2 2 . . . 23 . 7 . . 3 9 4 Cannons 72 | . . 1 5 . . 4 22 10 5 3 . 3 4 5 . 3 . . . . 3 1 1 2 AOE 32 | . . 3 5 . . . 6 2 . . . 2 7 . . . 1 . . . . . . 6 Classes Destroyed 18 | 2 6 . 4 . . . . 3 1 . . . 1 . . . 1 . . . . . . . Worker 10 | . 4 . 1 . . . . . 2 . . . . . . . 3 . . . . . . . Builder 10 | . . . 1 . . 1 1 . . . . 1 1 . . . 3 . . . . 2 . . Tunneler 3 | 1 . . . . . . 1 . . . . . 1 . . . . . . . . . . . Hauler 7 | . 2 . 1 . . . 1 1 . . . 1 . . . . 1 . . . . . . . Recycler 12 | 1 1 . 2 . . 1 . . 3 . . . 1 . . . 1 . . . . . . 2 Mechanic 1 | . . . . . . . . . 1 . . . . . . . . . . . . . . . Operator 8 | . 1 . 1 . . . 1 . . . . . . . 5 . . . . . . . . . Watcher 9 | . 3 . 1 . . . . . 2 . . 1 . . . . 2 . . . . . . . Swarmer 45 | . 6 5 4 . . . 8 . . . . 3 7 . . . 2 . 3 . . . . 7 Grunt 73 | . 8 2 15 . . 4 12 2 2 1 . 2 2 . . 3 3 . 4 . 6 2 5 . Brawler 6 | . . . 1 . . 2 3 . . . . . . . . . . . . . . . . . Duelist 1 | . . . 1 . . . . . . . . . . . . . . . . . . . . . Sentry 30 | . . . 4 . . . 6 2 4 4 . 1 1 . . . 5 . . . . . . 3 Specialist 5 | . . . . . . . . 1 . . . . . . . . 4 . . . . . . . Hunter 4 | . . . . . . . . 3 . . . . . . . . . . . . . 1 . . Programmer 34 | . . . . . . . . 7 2 . . 2 . . . . 13 . . . . 3 5 2 Heavy 1 | . . . . . . . . . . . . . . . . . 1 . . . . . . . Behemoth 2 | . . . . . . . . . . . . . 2 . . . . . . . . . . . Cetus Guard 5 | . . . . . . . . . . . . . . 5 . . . . . . . . . . Thug 2 | . . . . . . . . . . . . . 1 . 1 . . . . . . . . . Savage 1 | . . . . . . . . . . . . . . . . 1 . . . . . . . . Butcher 1 | . . . . . . . . . . . . . . 1 . . . . . . . . . . Best Kill Streak 8 | 2 6 3 6 . . 4 8 8 3 2 . 5 4 4 1 2 4 . 6 . 4 5 5 7 Combat Bots Only 8 | . 4 3 5 . . 3 7 8 2 2 . 3 4 4 . 2 3 . 6 . 4 4 5 7 Max Kills in Single Turn 5 | 1 2 2 3 . . 1 4 1 2 1 . 5 2 1 2 1 3 . 2 . 1 1 2 2 Gunslinging 1 | . . . . . . . . . . . . . . . . . 1 . 1 . . . 1 . Exploded 3 | . . 2 3 . . . 3 1 . . . 2 2 . . . 1 . . . . . . 2 Melee 1 | . . . . . . . . . . . . . . . . . 1 . . . . . . . Uniques/NPCs Destroyed . | . . . . . . . . . . . . . . . . . . . . . . . . . Combat | -11 -10 -10 -9 -9 -9 -8 -8 -7 -7 -7 -7 -5 -5 -5 -5 -5 -4 -4 -4 -4 -3 -3 -2 -1 -------- Run | Yrd Mat Min Mat Min Exi Min Mat Fac Sto Rec Scr Fac Ext Cet Arc Hub Fac Upp Upp Zhi Pro Res Res Acc Hostile Shots Fired 1545 | . 66 49 79 . . 16 85 113 68 90 . 11 55 23 6 64 346 . 32 . 26 59 158 199 Missed 425 | . 13 12 25 . . 3 21 40 26 42 . 4 15 5 2 10 79 . 7 . 12 14 50 45 Hits 1120 | . 53 37 54 . . 13 64 73 42 48 . 7 40 18 4 54 267 . 25 . 14 45 108 154 Melee 6 | . . . 3 . . . 3 . . . . . . . . . . . . . . . . . Projectile 1114 | . 53 37 51 . . 13 61 73 42 48 . 7 40 18 4 54 267 . 25 . 14 45 108 154 AOE 1 | . . . . . . . . . . . . . . . . . 1 . . . . . . . Critical Strikes 57 | . 1 . 3 . . 1 3 3 . . . . 2 3 . 12 11 . . . 1 5 4 8 Actively Blocked 8 | . . . . . . . . . . . . . . . . . . . . . . . . 8 Part Disruptions 10 | . . . . . . . . . . . . . . . . 2 2 . . . . 2 3 1 Damage Taken 18512 | . 603 403 681 . . 219 993 999 445 338 . 169 841 541 143 1843 3612 . 452 . 301 1001 1781 3147 Core 1472 | . 146 35 86 . . 18 133 145 84 39 . 18 20 23 . 120 197 . 17 . 17 41 140 193 Absorbed by Shields 2887 | . . . 58 . . . . . . . . 18 . . . . 1213 . . . . 115 755 728 Reduced by Siege Mode 369 | . . . . . . . . . . . . . . . . 54 315 . . . . . . . Ignored by Resistances 74 | . . . . . . . . . . . . 4 . . . . . . . . . . . 70 Regen/Repaired (Parts) 892 | . . . . . . . 133 . . . . . . . . . 268 . . . . 491 . . Core Remaining (%) 75 | 100 . 27 . . . 74 75 . . . 61 . . . . 81 . . . . 74 96 90 . Volleys Fired 721 | 28 76 20 56 . 6 18 63 48 36 13 . 19 34 17 12 21 94 3 24 . 37 26 25 45 Largest 4 | 1 2 2 3 . 1 3 3 3 3 3 . 3 3 3 3 3 3 3 3 . 1 2 4 3 Hottest 560 | 20 70 60 173 . 75 173 225 230 225 230 . 152 152 240 105 131 560 240 240 . 80 240 240 183 Shots Fired 1610 | 28 135 36 159 . 5 56 160 122 86 39 . 44 81 38 36 62 240 9 46 . 37 36 75 80 Gun 969 | 28 135 25 102 . . 19 . 22 36 12 . 26 48 9 36 36 221 9 46 . 24 27 62 46 Cannon 608 | . . 7 55 . 5 37 157 97 48 27 . 17 27 25 . 26 19 . . . 13 9 13 26 Launcher 29 | . . 4 2 . . . 3 3 2 . . 1 6 . . . . . . . . . . 8 Special 4 | . . . . . . . . . . . . . . 4 . . . . . . . . . . Kinetic 717 | 28 90 32 69 . . 19 . 1 . . . 26 51 33 36 62 165 . . . . 4 50 51 Thermal 794 | . 24 . 88 . 5 37 157 118 80 39 . 17 23 1 . . 56 9 46 . 24 24 25 21 Explosive 24 | . . 4 2 . . . 3 . . . . 1 6 . . . . . . . . . . 8 Electromagnetic 71 | . 21 . . . . . . 3 6 . . . 1 . . . 19 . . . 13 8 . . Robot Hit Streak 23 | 3 10 8 12 . . 10 15 7 10 15 . 5 10 5 8 7 23 2 11 . 6 15 11 10 Robot Miss Streak 5 | 3 4 4 5 . . 4 4 3 5 3 . 4 3 3 1 5 4 . 2 . 1 2 3 2 Penetration Max 2 | . . . . . . . . . . . . . 2 1 1 1 1 . . . . 1 1 1 Secondary Targets 12 | . . 1 . . . . . . . . . . . . . . 3 . 2 . . 1 4 1 Max Gunslinging Chain 2 | . . 1 . . . . . . . . . . . . . . 1 . 1 . . 1 2 1 Shots Hit Robots 961 | 15 87 18 85 . . 30 101 72 47 27 . 22 46 22 28 27 177 1 19 . 10 26 47 54 Core Hits 442 | 2 44 12 41 . . 12 45 34 25 9 . 13 40 11 13 10 58 1 13 . 4 9 19 27 Critical Kills 32 | . . . 1 . . . 1 . . . . 1 2 5 2 4 9 . . . . . 5 2 Critical Parts Destroyed 46 | . 1 1 1 . . . . . . . . 1 2 3 4 4 17 . . . . 2 7 3 Critical Strikes 100 | . 3 1 11 . . . 1 1 3 1 . 2 4 9 6 8 29 . . . . 2 12 7 Burn 14 | . 2 . 7 . . . . 1 3 1 . . . . . . . . . . . . . . Meltdown 2 | . . . . . . . 1 . . . . 1 . . . . . . . . . . . . Destroy 77 | . 1 1 4 . . . . . . . . 1 4 9 6 8 26 . . . . . 12 5 Blast 1 | . . . . . . . . . . . . . . . . . . . . . . . . 1 Corrupt 1 | . . . . . . . . . . . . . . . . . 1 . . . . . . . Smash 5 | . . . . . . . . . . . . . . . . . 2 . . . . 2 . 1 Melee Attacks 23 | . . . . . . . . . . . . . . . . . 9 . . . . 8 . 6 Impact 23 | . . . . . . . . . . . . . . . . . 9 . . . . 8 . 6 Slashing . | . . . . . . . . . . . . . . . . . . . . . . . . . Piercing . | . . . . . . . . . . . . . . . . . . . . . . . . . Sneak Attacks 1 | . . . . . . . . . . . . . . . . . 1 . . . . . . . Combat Hostiles . | . . . . . . . . . . . . . . . . . . . . . . . . . Follow-up Attacks . | . . . . . . . . . . . . . . . . . . . . . . . . . Damage Inflicted 29468 | 202 1145 459 2212 . . 700 3074 2103 1141 688 . 880 2387 528 920 685 5995 23 625 . 573 1305 1080 2743 Guns 14666 | 202 1131 126 1134 . . 134 . 358 376 205 . 343 943 155 920 470 5006 23 625 . . 641 888 986 Cannons 11117 | . . 90 750 . . 550 2729 1493 711 483 . 369 663 373 . 199 407 . . . 573 491 185 1051 Explosions 2788 | . . 243 322 . . . 323 252 . . . 168 771 . . . 206 . . . . . . 503 Melee 624 | . . . . . . . . . . . . . . . . . 274 . . . . 147 . 203 Ramming 273 | . 14 . 6 . . 16 22 . 54 . . . 10 . . 16 102 . . . . 26 7 . Kinetic 11441 | 202 739 216 830 . . 134 . 29 . . . 343 971 528 920 669 3674 . . . . . 550 1636 Thermal 13031 | . 156 . 1054 . . 550 2729 1949 1074 688 . 369 711 . . . 1538 23 625 . . 641 523 401 Explosive 2254 | . . 243 322 . . . 323 . . . . 168 695 . . . . . . . . . . 503 Electromagnetic 1845 | . 236 . . . . . . 125 13 . . . . . . . 407 . . . 573 491 . . Impact 624 | . . . . . . . . . . . . . . . . . 274 . . . . 147 . 203 Slashing . | . . . . . . . . . . . . . . . . . . . . . . . . . Piercing . | . . . . . . . . . . . . . . . . . . . . . . . . . Highest Corruption 21 | . . . 8 8 8 8 . 2 3 3 . . . 10 10 16 21 21 21 21 21 11 11 14 Average Corruption 9 | . . . 7 8 8 8 . 1 2 3 . . . 9 8 8 13 21 21 21 21 10 6 6 Corruption Purged 10 | . . . . . . . . . . . . . . . 10 . . . . . . . . . Corruption Blocked . | . . . . . . . . . . . . . . . . . . . . . . . . . Effects 349 | . . . 26 4 12 21 . 8 22 28 . . . 11 7 3 75 22 28 14 35 18 12 3 Message Errors 82 | . . . 8 1 2 6 . 1 7 4 . . . 5 1 1 18 4 6 4 4 5 3 2 Matter Fused 70 | . . . . 1 4 3 . 2 4 6 . . . 3 1 . 13 5 9 3 10 4 2 . Heat Flow Errors 41 | . . . 7 . . 3 . 1 2 3 . . . . 1 . 8 2 4 1 5 3 1 . Energy Discharges 40 | . . . 2 1 3 2 . 1 2 4 . . . 1 2 . 9 4 . 2 4 2 1 . Parts Rejected 3 | . . . . . . . . 1 . . . . . . . . 2 . . . . . . . Parts Fused 6 | . . . . . . . . . . 1 . . . 1 . . 1 1 1 . . . 1 . Data Loss (minor) 43 | . . . 1 1 2 4 . . 4 6 . . . . . 1 7 3 2 3 5 1 2 1 Data Loss (major) 16 | . . . 2 . . 1 . 1 1 1 . . . . . . 2 1 1 1 4 . 1 . Misfires 25 | . . . 5 . . 2 . 1 2 1 . . . 1 1 . 5 2 3 . 1 1 . . Alerts 7 | . . . 1 . . . . . . 2 . . . . . . 2 . . . 1 1 . . Misdirections 1 | . . . . . . . . . . . . . . . . . 1 . . . . . . . Weapon Failures 15 | . . . . . 1 . . . . . . . . . 1 1 7 . 2 . 1 1 1 . Overload Shots 14 | . . . . . . . . . . . . . . 1 . . 3 . 1 . . 8 1 . Overflow Damage 422 | . . 21 . . . . 53 8 . 7 . . . 8 . . 85 . . . . 130 . 110 Projectiles 119 | . . 3 . . . . 43 7 . 7 . . . 8 . . . . . . . 31 . 20 Explosions 57 | . . 18 . . . . 10 1 . . . . . . . . . . . . . . . 28 Melee 246 | . . . . . . . . . . . . . . . . . 85 . . . . 99 . 62 Knockbacks 19 | . . 1 4 . . . . . . . . . 1 2 . 4 2 . . . . 1 . 4 Impact 6 | . . . . . . . . . . . . . 1 . . . 2 . . . . 1 . 2 Kinetic 12 | . . 1 3 . . . . . . . . . . 2 . 4 . . . . . . . 2 Secondary 1 | . . . 1 . . . . . . . . . . . . . . . . . . . . . Self-Inflicted Damage 167 | . . . . . . . . . . . . . 22 . . . . . . . . . . 145 Shots 4 | . . . . . . . . . . . . . 1 . . . . . . . . . . 3 Rammed 23 | . . . 3 . . 2 1 . 4 . . . . . . 2 9 . . . . 1 1 . Targets Rammed 28 | . 3 . 3 . . 3 1 . 4 . . . 1 . . 2 9 . . . . 1 1 . Kicked 3 | . 3 . . . . . . . . . . . . . . . . . . . . . . . Crushed 2 | . . . . . . 1 . . . . . . 1 . . . . . . . . . . . Highest Temperature 456 | . 278 103 362 . . 151 75 50 263 456 . 284 276 124 199 174 395 360 360 182 408 388 148 17 Average Temperature 91 | . 126 43 99 . . 43 44 19 69 126 . 91 74 23 118 77 131 112 110 29 79 208 16 9 Received Heat Transfer 3833 | . 273 135 241 . . 135 459 69 195 78 . 37 159 81 9 207 669 . 126 . 69 77 647 167 Effects 16 | . 1 . 3 . . . . . . . . . . . . . 6 . . . 1 5 . . Shutdowns 2 | . . . . . . . . . . . . . . . . . 1 . . . . 1 . . Energy Bleed 2 | . . . . . . . . . . . . . . . . . 1 . . . 1 . . . Interference 9 | . 1 . 2 . . . . . . . . . . . . . 3 . . . . 3 . . Short Circuit 2 | . . . 1 . . . . . . . . . . . . . . . . . . 1 . . Damage (minor) 1 | . . . . . . . . . . . . . . . . . 1 . . . . . . . Siege Activations 14 | . . . . . . . . . . . . . . . . 1 12 . . . . . . 1 Total Turns 214 | . . . . . . . . . . . . . . . . 16 190 . . . . . . 8 Longest Duration 40 | . . . . . . . . . . . . . . . . 16 40 . . . . . . 8 Martial Activations . | . . . . . . . . . . . . . . . . . . . . . . . . . Shielding Activations . | . . . . . . . . . . . . . . . . . . . . . . . . . Robots Disrupted . | . . . . . . . . . . . . . . . . . . . . . . . . . Combat Hostiles . | . . . . . . . . . . . . . . . . . . . . . . . . . Robots Corrupted 10 | . . . . . . . . . . . . . . . . . 5 . . . 3 2 . . Combat Hostiles 8 | . . . . . . . . . . . . . . . . . 3 . . . 3 2 . . Parts Fried 18 | . 1 . . . . . . . . . . . 1 . . . 8 . . . 7 1 . . Impact Corruptions 10 | . . . . . . . . . . . . . . . . . 4 . . . . 3 . 3 Robots Melted 4 | . . . . . . . 1 1 . 1 . 1 . . . . . . . . . . . . Combat Hostiles 4 | . . . . . . . 1 1 . 1 . 1 . . . . . . . . . . . . Parts Melted 42 | . . . . . . 2 4 5 7 3 . 4 . . . . 12 . 2 . . 2 . 1 Heat Transferred 18501 | . 592 . 2331 . . 814 3794 2547 1943 1244 . 370 716 . . . 1617 37 740 . . 618 620 518 Parts Sabotaged . | . . . . . . . . . . . . . . . . . . . . . . . . . Parts Stolen . | . . . . . . . . . . . . . . . . . . . . . . . . . Parts Stripped . | . . . . . . . . . . . . . . . . . . . . . . . . . Power Chain Reactions 2 | . . . . . . . . 1 1 . . . . . . . . . . . . . . . Alert | -11 -10 -10 -9 -9 -9 -8 -8 -7 -7 -7 -7 -5 -5 -5 -5 -5 -4 -4 -4 -4 -3 -3 -2 -1 ------- Run | Yrd Mat Min Mat Min Exi Min Mat Fac Sto Rec Scr Fac Ext Cet Arc Hub Fac Upp Upp Zhi Pro Res Res Acc Maximum Alert Level 3 | . . . 1 . . . 3 1 2 1 . 1 3 2 1 2 2 . . . . . . 1 Low Security (%) 63 | 100 100 100 32 100 . 100 48 59 45 67 . 85 85 . 1 52 2 . . . . 100 100 92 Level 1 23 | . . . 67 . . . 22 40 36 32 . 14 8 1 98 26 36 . . . . . . 7 Level 2 12 | . . . . . . . 14 . 18 . . . 2 98 . 22 60 . . . . . . . Level 3 1 | . . . . . . . 13 . . . . . 3 . . . . . . . . . . . Level 4 . | . . . . . . . . . . . . . . . . . . . . . . . . . Level 5 . | . . . . . . . . . . . . . . . . . . . . . . . . . High Security . | . . . . . . . . . . . . . . . . . . . . . . . . . Max Security . | . . . . . . . . . . . . . . . . . . . . . . . . . Peak Influence 758 | 5 155 145 388 139 . 72 758 330 602 342 . 280 756 557 391 485 535 . . . . 80 137 232 Initial 423 | . . . 51 139 . . 18 327 141 228 . . 61 423 194 105 222 . . . . . 2 26 Average 173 | . 28 11 239 94 . 11 254 202 241 161 . 126 128 476 327 236 409 . . . . 15 40 53 Influence Increases 9774 | 10 493 207 823 . . 162 1069 457 962 398 . 539 1177 324 247 570 1064 . 140 . 145 232 325 430 Destroy 0b10 Robot/C 5060 | . 280 140 500 . . 120 580 300 400 160 . 240 520 160 80 200 560 . 140 . 120 120 200 240 Destroy 0b10 Robot/NC 325 | 10 55 . 35 . . 10 20 5 40 5 . 20 15 10 25 5 50 . . . . 10 . 10 Destroy Leader 1006 | . 80 30 134 . . 20 122 82 124 . . 46 50 . . 32 166 . . . 10 20 30 60 Allied During Kill 1141 | . . . . . . . . . 239 45 . 154 334 123 105 141 . . . . . . . . Successful Hack 319 | . 31 . 12 . . . 32 5 63 16 . 14 52 . . 10 . . . . . 34 50 . Select Force Hacks 230 | . 30 . . . . . . . . 150 . . . . . 50 . . . . . . . . Disable Machine 525 | . . . 45 . . . 45 45 75 15 . 15 60 15 15 30 135 . . . . 15 . 15 Anti-Garrison Action 150 | . . . . . . . 150 . . . . . . . . . . . . . . . . . Destroy Structure 733 | . 2 22 37 . . 12 60 20 21 7 . 50 116 16 22 72 138 . . . . 18 30 90 Lose Combat Pursuer 285 | . 15 15 60 . . . 60 . . . . . 30 . . 30 15 . . . 15 15 15 15 Influence Decreases 9608 | 10 493 74 597 310 49 114 397 865 687 931 54 412 548 593 433 416 1068 382 209 . 145 228 284 309 Entered New Map 2682 | . . . 82 220 49 . 30 393 171 359 54 . 66 333 293 196 233 168 14 . . . 2 19 Time Decay 5843 | 10 340 74 485 90 . 114 357 452 506 562 . 252 402 230 140 100 595 214 185 . 145 218 232 140 Lost Part 400 | . 10 . 30 . . . 10 20 10 10 . . 10 10 . . 70 . 10 . . 10 50 150 Lost Ally 390 | . . . . . . . . . . . . 160 70 20 . 120 20 . . . . . . . Purge Threat 293 | . 143 . . . . . . . . . . . . . . . 150 . . . . . . . Squads Dispatched 59 | . 4 . 4 . . . 7 5 4 . . 1 3 . . 3 11 . 1 . . 8 2 6 Investigation 14 | . 1 . 1 . . . . 1 1 . . . . . . 2 2 . 1 . . 4 1 . Extermination 12 | . . . . . . . . 2 1 . . 1 . . . . 4 . . . . 1 1 2 Reinforcement 24 | . 3 . 3 . . . 2 2 2 . . . 3 . . 1 5 . . . . 3 . . Assault 2 | . . . . . . . 2 . . . . . . . . . . . . . . . . . Garrison 7 | . . . . . . . 3 . . . . . . . . . . . . . . . . 4 Intercept . | . . . . . . . . . . . . . . . . . . . . . . . . . Searches Triggered . | . . . . . . . . . . . . . . . . . . . . . . . . . Construction Impeded 7 | . . . 1 . . . . . 1 . . . 2 . . 1 2 . . . . . . . Haulers Reinforced 1 | . . . . . . . . 1 . . . . . . . . . . . . . . . . Active Scanning Responses . | . . . . . . . . . . . . . . . . . . . . . . . . . Cargo Convoy Interrupts 1 | . . . . . . . . 1 . . . . . . . . . . . . . . . . Stealth | -11 -10 -10 -9 -9 -9 -8 -8 -7 -7 -7 -7 -5 -5 -5 -5 -5 -4 -4 -4 -4 -3 -3 -2 -1 --------- Run | Yrd Mat Min Mat Min Exi Min Mat Fac Sto Rec Scr Fac Ext Cet Arc Hub Fac Upp Upp Zhi Pro Res Res Acc Distress Signals 25 | . 2 . 5 . . . 3 1 2 . . 1 2 2 . 1 3 . . . . 3 . . Communications Jammed . | . . . . . . . . . . . . . . . . . . . . . . . . . Distress Signals . | . . . . . . . . . . . . . . . . . . . . . . . . . Times Spotted 322 | . 19 7 38 . . 6 39 28 18 7 . 11 27 10 6 17 36 . 7 . 6 12 12 16 Peak Tracking Total 11 | . 4 3 6 . . 3 10 11 3 4 . 5 7 5 2 8 5 . 4 . 5 4 5 6 Tactical Retreats 18 | . 1 1 4 . . . 3 . . . . . 2 . . 2 1 . . . 1 1 1 1 Traps | -11 -10 -10 -9 -9 -9 -8 -8 -7 -7 -7 -7 -5 -5 -5 -5 -5 -4 -4 -4 -4 -3 -3 -2 -1 ------- Run | Yrd Mat Min Mat Min Exi Min Mat Fac Sto Rec Scr Fac Ext Cet Arc Hub Fac Upp Upp Zhi Pro Res Res Acc Traps Triggered 15 | . 5 . . . . . . 1 5 . . . . . . . 2 . . . . 1 1 . Indirectly . | . . . . . . . . . . . . . . . . . . . . . . . . . Trap Hack Attempts . | . . . . . . . . . . . . . . . . . . . . . . . . . Triggered . | . . . . . . . . . . . . . . . . . . . . . . . . . Disarmed . | . . . . . . . . . . . . . . . . . . . . . . . . . Reprogrammed . | . . . . . . . . . . . . . . . . . . . . . . . . . Reused . | . . . . . . . . . . . . . . . . . . . . . . . . . Traps Extracted . | . . . . . . . . . . . . . . . . . . . . . . . . . Installed . | . . . . . . . . . . . . . . . . . . . . . . . . . Triggered . | . . . . . . . . . . . . . . . . . . . . . . . . . Most Traps Carried 1 | . . . . . . . . . . . 1 1 1 1 . . . . . . . . . . Machines | -11 -10 -10 -9 -9 -9 -8 -8 -7 -7 -7 -7 -5 -5 -5 -5 -5 -4 -4 -4 -4 -3 -3 -2 -1 ---------- Run | Yrd Mat Min Mat Min Exi Min Mat Fac Sto Rec Scr Fac Ext Cet Arc Hub Fac Upp Upp Zhi Pro Res Res Acc Machines Disabled 40 | . . . 3 . 2 . 4 3 5 1 . 1 4 1 1 2 9 . 2 . . 1 . 1 Max in Single Turn 2 | . . . 1 . 1 . 1 2 1 1 . 1 2 1 1 1 1 . 1 . . 1 . 1 Garrison Access 4 | . . . . . . . 1 . 1 . . . . . . . 1 . . . . 1 . . Network Hub 1 | . . . . . . . . . . . . . . . . 1 . . . . . . . . Energy Cycler 2 | . . . . . . . . . . . . . 2 . . . . . . . . . . . Machines Repaired . | . . . . . . . . . . . . . . . . . . . . . . . . . Machines Dismantled . | . . . . . . . . . . . . . . . . . . . . . . . . . Machines Sabotaged 1 | . . . . . . . . . . . . . . . . 1 . . . . . . . . Overloaded Fab Kills . | . . . . . . . . . . . . . . . . . . . . . . . . . Hacking | -11 -10 -10 -9 -9 -9 -8 -8 -7 -7 -7 -7 -5 -5 -5 -5 -5 -4 -4 -4 -4 -3 -3 -2 -1 --------- Run | Yrd Mat Min Mat Min Exi Min Mat Fac Sto Rec Scr Fac Ext Cet Arc Hub Fac Upp Upp Zhi Pro Res Res Acc Machines Accessed 87 | . 8 . 6 . 1 . 8 6 9 12 3 4 8 1 1 2 3 . 2 7 . 2 4 . Terminals 52 | . 6 . 6 . . . 5 4 6 6 . 4 8 1 . 2 1 . 1 . . . 2 . Fabricators 1 | . . . . . . . . . . . . . . . . . . . . . . 1 . . Repair Stations 5 | . . . . . . . 1 . . . . . . . . . 1 . . . . 1 2 . Recycling Units 10 | . 2 . . . . . . . 2 6 . . . . . . . . . . . . . . Scanalyzers 3 | . . . . . . . 1 2 . . . . . . . . . . . . . . . . Garrison Access 3 | . . . . . . . 1 . 1 . . . . . . . 1 . . . . . . . Total Hacks 240 | . 24 . 19 . 1 . 29 14 22 36 5 7 20 2 1 3 4 . 6 20 . 11 16 . Successful 126 | . 15 . 8 . 1 . 20 2 9 16 5 3 5 . 1 3 3 . 6 20 . 6 3 . Failed 113 | . 9 . 11 . . . 8 12 13 20 . 4 15 2 . . 1 . . . . 5 13 . Catastrophic 24 | . . . 1 . . . 1 4 3 6 . 1 5 . . . 1 . . . . . 2 . Database Lockouts 1 | . . . . . . . 1 . . . . . . . . . . . . . . . . . Manual 90 | . 17 . 15 . . . 14 8 6 14 . 3 4 2 . 3 1 . . . . 2 1 . Terminals 144 | . 21 . 19 . . . 16 8 16 19 . 7 20 2 . 3 2 . 5 . . . 6 . Fabricators 3 | . . . . . . . . . . . . . . . . . . . . . . 3 . . Repair Stations 23 | . . . . . . . 4 . . . . . . . . . 1 . . . . 8 10 . Recycling Units 24 | . 3 . . . . . . . 4 17 . . . . . . . . . . . . . . Scanalyzers 12 | . . . . . . . 6 6 . . . . . . . . . . . . . . . . Garrison Access 6 | . . . . . . . 3 . 2 . . . . . . . 1 . . . . . . . Terminal Hacks 66 | . 6 . 4 . 1 . 5 . 6 3 5 3 4 . 1 . 1 . 6 20 . . 1 . Record 19 | . . . . . 1 . . . . 2 1 . . . 1 . . . 6 8 . . . . Part Schematic 9 | . 1 . . . . . . . 3 . . . . . . . . . . 4 . . 1 . Robot Analysis 15 | . 1 . 1 . . . 3 . 1 . 3 . 2 . . . . . . 4 . . . . Prototype ID Bank 11 | . 3 . 1 . . . . . . 1 . . 2 . . . . . . 4 . . . . Open Door 2 | . . . . . . . . . 1 . . 1 . . . . . . . . . . . . Branch Access Points 1 | . . . . . . . . . . . . 1 . . . . . . . . . . . . Alert Level 1 | . . . 1 . . . . . . . . . . . . . . . . . . . . . Unreport Threat 2 | . 1 . . . . . . . . . . . . . . . 1 . . . . . . . Hauler Manifests 2 | . . . 1 . . . 1 . . . . . . . . . . . . . . . . . Zone Layout 3 | . . . . . . . 1 . 1 . . 1 . . . . . . . . . . . . Proto ID Catalog 1 | . . . . . . . . . . . 1 . . . . . . . . . . . . . Fabricator Hacks 2 | . . . . . . . . . . . . . . . . . . . . . . 2 . . Load Schematic 1 | . . . . . . . . . . . . . . . . . . . . . . 1 . . Build 1 | . . . . . . . . . . . . . . . . . . . . . . 1 . . Repair Station Hacks 9 | . . . . . . . 4 . . . . . . . . . . . . . . 3 2 . Scan Component 6 | . . . . . . . 2 . . . . . . . . . . . . . . 2 2 . Repair 3 | . . . . . . . 2 . . . . . . . . . . . . . . 1 . . Recycling Unit Hacks 7 | . . . . . . . . . . 7 . . . . . . . . . . . . . . Report Inventory 6 | . . . . . . . . . . 6 . . . . . . . . . . . . . . Retrieve Components 1 | . . . . . . . . . . 1 . . . . . . . . . . . . . . Scanalyzer 6 | . . . . . . . 5 1 . . . . . . . . . . . . . . . . Insert Component 3 | . . . . . . . 2 1 . . . . . . . . . . . . . . . . Analyze 3 | . . . . . . . 3 . . . . . . . . . . . . . . . . . Garrison Access Hacks 2 | . . . . . . . . . 1 . . . . . . . 1 . . . . . . . Seal Access 2 | . . . . . . . . . 1 . . . . . . . 1 . . . . . . . Unauthorized Hacks 34 | . 9 . 4 . . . 6 1 2 6 . . 1 . . 3 1 . . . . 1 . . Terminals 26 | . 8 . 4 . . . 6 1 2 1 . . 1 . . 3 . . . . . . . . Botnet 10 | . 2 . 1 . . . 1 1 2 1 . . 1 . . 1 . . . . . . . . Skim 14 | . 6 . 3 . . . 5 . . . . . . . . . . . . . . . . . Sabotage 2 | . . . . . . . . . . . . . . . . 2 . . . . . . . . Fabricators . | . . . . . . . . . . . . . . . . . . . . . . . . . Repair Stations 2 | . . . . . . . . . . . . . . . . . 1 . . . . 1 . . Patch 2 | . . . . . . . . . . . . . . . . . 1 . . . . 1 . . Recycling Units 6 | . 1 . . . . . . . . 5 . . . . . . . . . . . . . . Tunnel 6 | . 1 . . . . . . . . 5 . . . . . . . . . . . . . . Scanalyzers . | . . . . . . . . . . . . . . . . . . . . . . . . . Garrison Access . | . . . . . . . . . . . . . . . . . . . . . . . . . Data Cores Recovered . | . . . . . . . . . . . . . . . . . . . . . . . . . Used . | . . . . . . . . . . . . . . . . . . . . . . . . . Hacking Detections 67 | . 7 . 6 . . . 8 6 8 10 . 3 8 2 . 1 1 . 1 . . 2 4 . Full Trace Events 11 | . . . 2 . . . 1 . 1 4 . . . . . . 1 . 1 . . 1 . . Feedback Events 1 | . . . 1 . . . . . . . . . . . . . . . . . . . . . Corruption 1 | . . . 1 . . . . . . . . . . . . . . . . . . . . . Feedback Blocked . | . . . . . . . . . . . . . . . . . . . . . . . . . Robot Schematics Acquired . | . . . . . . . . . . . . . . . . . . . . . . . . . Robots Built . | . . . . . . . . . . . . . . . . . . . . . . . . . Authchips . | . . . . . . . . . . . . . . . . . . . . . . . . . Time . | . . . . . . . . . . . . . . . . . . . . . . . . . Total Robot Build Rating . | . . . . . . . . . . . . . . . . . . . . . . . . . Part Schematics Acquired 10 | . 1 . . . . . 1 . 3 . . . . . . . . . . 4 . . 1 . Parts Built 1 | . . . . . . . . . . . . . . . . . . . . . . 1 . . Authchips . | . . . . . . . . . . . . . . . . . . . . . . . . . Time 93 | . . . . . . . . . . . . . . . . . . . . . . 93 . . Total Part Build Rating 7 | . . . . . . . . . . . . . . . . . . . . . . 7 . . Parts Repaired 3 | . . . . . . . 2 . . . . . . . . . . . . . . 1 . . Time 113 | . . . . . . . 82 . . . . . . . . . . . . . . 31 . . Parts Recycled . | . . . . . . . . . . . . . . . . . . . . . . . . . Recycled Matter . | . . . . . . . . . . . . . . . . . . . . . . . . . Retrieved Matter . | . . . . . . . . . . . . . . . . . . . . . . . . . Retrieved Components 3 | . . . . . . . . . . 3 . . . . . . . . . . . . . . Parts Scanalyzed 2 | . . . . . . . 2 . . . . . . . . . . . . . . . . . Part Schematics Acquired 1 | . . . . . . . 1 . . . . . . . . . . . . . . . . . Parts Damaged 1 | . . . . . . . 1 . . . . . . . . . . . . . . . . . Bothacking | -11 -10 -10 -9 -9 -9 -8 -8 -7 -7 -7 -7 -5 -5 -5 -5 -5 -4 -4 -4 -4 -3 -3 -2 -1 ------------ Run | Yrd Mat Min Mat Min Exi Min Mat Fac Sto Rec Scr Fac Ext Cet Arc Hub Fac Upp Upp Zhi Pro Res Res Acc Used RIF Installer . | . . . . . . . . . . . . . . . . . . . . . . . . . Robots Hacked . | . . . . . . . . . . . . . . . . . . . . . . . . . Non-combat . | . . . . . . . . . . . . . . . . . . . . . . . . . Combat . | . . . . . . . . . . . . . . . . . . . . . . . . . Robot Hacks Applied . | . . . . . . . . . . . . . . . . . . . . . . . . . Relay Couplers Released 4 | . . . . . . . 2 . . . . . . . . . . . . . . 2 . . Machine Destruction 4 | . . . . . . . 2 . . . . . . . . . . . . . . 2 . . Fabnet Peak Effective % . | . . . . . . . . . . . . . . . . . . . . . . . . . Robots Rewired 9 | . . . . . . . . . . 5 . . 4 . . . . . . . . . . . Allies Hacked . | . . . . . . . . . . . . . . . . . . . . . . . . . Hacks Repelled . | . . . . . . . . . . . . . . . . . . . . . . . . . Allies | -11 -10 -10 -9 -9 -9 -8 -8 -7 -7 -7 -7 -5 -5 -5 -5 -5 -4 -4 -4 -4 -3 -3 -2 -1 -------- Run | Yrd Mat Min Mat Min Exi Min Mat Fac Sto Rec Scr Fac Ext Cet Arc Hub Fac Upp Upp Zhi Pro Res Res Acc Total Allies 31 | . . . . . . . . . 10 5 . . 11 5 . . . . . . . . . . Largest Group 12 | . . . . . . . . . 10 12 12 12 8 10 10 7 . . . . . . . . Highest-Rated Group 717 | . . . . . . . . . 173 245 245 245 339 717 697 524 . . . . . . . . Highest-Rated Ally 131 | . . . . . . . . . 29 32 32 32 131 123 116 96 . . . . . . . . Total Orders 18 | . . . . . . . . . 3 2 4 . 2 . . 2 5 . . . . . . . STAY 6 | . . . . . . . . . 2 1 2 . 1 . . . . . . . . . . . FOLLOW 5 | . . . . . . . . . 1 1 2 . 1 . . . . . . . . . . . EXPLORE 6 | . . . . . . . . . . . . . . . . 2 4 . . . . . . . RETURN 1 | . . . . . . . . . . . . . . . . . 1 . . . . . . . Ally Attacks 352 | . . . . . . . . . 82 23 . 56 77 31 22 61 . . . . . . . . Total Damage 7980 | . . . . . . . . . 984 351 . 974 1724 1038 968 1941 . . . . . . . . Kills 57 | . . . . . . . . . 14 5 . 6 14 5 5 8 . . . . . . . . Allies Corrupted 5 | . . . . . . . . . . . . 1 . . . 3 1 . . . . . . . Allies Melted 1 | . . . . . . . . . . . . . . . . 1 . . . . . . . . Intel | -11 -10 -10 -9 -9 -9 -8 -8 -7 -7 -7 -7 -5 -5 -5 -5 -5 -4 -4 -4 -4 -3 -3 -2 -1 ------- Run | Yrd Mat Min Mat Min Exi Min Mat Fac Sto Rec Scr Fac Ext Cet Arc Hub Fac Upp Upp Zhi Pro Res Res Acc Active Infowar (turns) 9168 | . 960 954 441 . . . 517 902 . . . 395 . . . . 997 454 507 317 698 829 661 536 Sensors 5136 | . . . . . . . 126 . . . . 362 . . . . 978 454 505 317 643 798 501 452 Terrain 4073 | . . . . . . . . . . . . . . . . . 364 450 501 229 698 797 498 536 Seismic 3523 | . 960 954 283 . . . 391 902 . . . 33 . . . . . . . . . . . . T.N.C. 286 | . . . 286 . . . . . . . . . . . . . . . . . . . . . Jamming 224 | . . . . . . . . . . . . . . . . . . . . . . . 224 . Robot Analysis Total 15 | . 1 . 1 . . . 3 . 1 . 3 . 2 . . . . . . 4 . . . . Derelict Logs Recovered 4 | . . 1 . . . . . . . . . . . . . . . 2 1 . . . . . Drone Launches 6 | . . . . . . . . . . . . . . . . 2 4 . . . . . . . Drone Recoveries 4 | . . . . . . . . . . . . . . . . 2 2 . . . . . . . Exploration | -11 -10 -10 -9 -9 -9 -8 -8 -7 -7 -7 -7 -5 -5 -5 -5 -5 -4 -4 -4 -4 -3 -3 -2 -1 ------------- Run | Yrd Mat Min Mat Min Exi Min Mat Fac Sto Rec Scr Fac Ext Cet Arc Hub Fac Upp Upp Zhi Pro Res Res Acc Turns Passed 24424 | 172 1611 990 1410 196 418 760 1214 1121 1370 1669 4605 661 1078 487 280 200 1898 455 545 346 768 829 765 576 Spaces Moved 10166 | 87 881 428 486 26 169 286 478 429 458 619 1864 356 592 240 72 51 784 252 271 195 280 368 248 246 Core 15 | 9 5 . . . . . . . 1 . . . . . . . . . . . . . . . Treads 8871 | . 71 428 486 26 169 286 478 429 457 619 1773 356 592 240 72 51 784 252 271 195 280 368 188 . Legs 886 | 78 805 . . . . . . . . . . . . . . . . . . . . . 3 . Wheels 394 | . . . . . . . . . . . 91 . . . . . . . . . . . 57 246 Hover . | . . . . . . . . . . . . . . . . . . . . . . . . . Flight . | . . . . . . . . . . . . . . . . . . . . . . . . . Fastest Speed 50 | 50 100 160 160 240 240 240 160 160 240 246 210 153 150 155 162 162 160 166 166 166 166 166 166 128 Average Speed 192 | 119 126 160 225 240 240 240 160 192 250 246 244 161 155 156 162 162 165 166 166 166 166 166 255 155 Slowest Speed 1650 | 150 200 160 240 240 240 240 160 240 1650 246 570 203 203 162 162 162 240 166 166 166 166 166 610 310 Overloaded Moves . | . . . . . . . . . . . . . . . . . . . . . . . . . Propulsion Burnouts . | . . . . . . . . . . . . . . . . . . . . . . . . . Robots Hopped . | . . . . . . . . . . . . . . . . . . . . . . . . . Potential Cave-ins 2 | . . . . . . . . . . . . . . . . . . . . . 2 . . . Cave-ins Triggered . | . . . . . . . . . . . . . . . . . . . . . . . . . Teleports 1 | . . . . . . . . . . . . . . . . . . . . 1 . . . . Exploration Rate (%) 47 | 5 95 91 50 6 50 77 40 13 62 95 92 7 84 66 75 17 24 56 43 62 43 12 10 9 Regions Visited 24 Branch Regions 15 Pre-discovered Areas 16 | . 1 1 . . 1 . 2 . . 5 1 . . . . . . 1 1 3 . . . . Known Exits Taken 13 | . 1 1 . . . . 1 . . 1 1 1 . . . . 1 1 1 1 1 1 1 . Unknown Exits Taken 11 | 1 . . 1 1 1 1 . 1 1 . . . 1 1 1 1 . . . . . . . . Scrap Searched 10 | . . 1 . . . 1 . . . . 2 . . . . . . 4 2 . . . . . Spaces Dug 75 | . . . 1 . . . 5 . 2 . . . 14 . . . 7 2 6 . 10 9 7 12 Terrain Destroyed 464 | . . 28 28 . 2 15 58 18 23 7 . 24 77 8 12 14 69 2 11 . 16 9 11 32 Melee 6 | . . . . . . . . . . . . . . . . . 4 . . . . 2 . . Projectile 269 | . . 3 16 . 2 15 34 . 19 7 . 12 19 8 12 14 47 2 11 . 16 7 9 16 AOE 187 | . . 25 12 . . . 24 18 4 . . 12 58 . . . 18 . . . . . . 16 Terrain Rammed . | . . . . . . . . . . . . . . . . . . . . . . . . . Walls Destroyed . | . . . . . . . . . . . . . . . . . . . . . . . . . Machines Disabled . | . . . . . . . . . . . . . . . . . . . . . . . . . Actions | -11 -10 -10 -9 -9 -9 -8 -8 -7 -7 -7 -7 -5 -5 -5 -5 -5 -4 -4 -4 -4 -3 -3 -2 -1 --------- Run | Yrd Mat Min Mat Min Exi Min Mat Fac Sto Rec Scr Fac Ext Cet Arc Hub Fac Upp Upp Zhi Pro Res Res Acc Total 13649 | 125 1249 704 685 161 176 318 800 629 608 738 1921 425 708 329 208 119 1167 283 327 218 543 535 323 350 Wait 1952 | 1 230 237 82 136 2 6 213 87 62 80 23 3 33 21 104 37 197 18 18 . 220 95 24 23 Move 10143 | 86 880 427 485 25 168 285 477 428 457 618 1863 355 591 239 71 51 783 251 270 194 279 367 247 246 Hop . | . . . . . . . . . . . . . . . . . . . . . . . . . Pick Up 175 | 3 23 7 17 . . . 9 23 11 1 11 11 1 14 4 1 15 2 3 3 . 9 3 4 Fast Attach 111 | 5 13 1 4 . . . 5 6 13 1 3 8 5 8 4 1 12 1 2 9 . 4 4 2 Attach 85 | 1 4 . 7 . . . 4 4 8 2 3 6 1 2 . . 13 . 1 1 1 9 5 13 Detach 13 | . . . 2 . . . . 1 1 . 1 . . . . . 2 1 . . . 3 . 2 Swap 146 | . 5 4 11 . . 3 16 17 5 2 1 6 6 6 5 4 19 4 6 . 6 5 11 4 Drop 202 | 1 15 8 18 . . 3 12 15 11 3 16 17 6 22 8 3 11 3 3 11 . 8 3 5 Fire 721 | 28 76 20 56 . 6 18 63 48 36 13 . 19 34 17 12 21 94 3 24 . 37 26 25 45 Melee 23 | . . . . . . . . . . . . . . . . . 9 . . . . 8 . 6 Ram . | . . . . . . . . . . . . . . . . . . . . . . . . . Kick 3 | . 3 . . . . . . . . . . . . . . . . . . . . . . . Crush 24 | . . . 3 . . 3 1 . 4 . . . 1 . . 1 9 . . . . 1 1 . Escape Stasis . | . . . . . . . . . . . . . . . . . . . . . . . . . Rewire 51 | . . . . . . . . . . 18 . . 30 . . . 3 . . . . . . . Trap . | . . . . . . . . . . . . . . . . . . . . . . . . . Miscellaneous . | . . . . . . . . . . . . . . . . . . . . . . . . . Route ------- -11/Scrapyard -10/Materials (discovered 6 exits: *Mat x3 / *Min x2 / Sub) -10/Mines -9/Materials (discovered 2 exits: *Mat / [*Min]) -9/Mines -9/Exiles -8/Mines -8/Materials (discovered 3 exits: *Fac x3) -7/Factory (discovered 4 exits: *Fac x3 / *Sto) -7/Storage (discovered 2 exits: Fac / *Rec) -7/Recycling (discovered 2 exits: *Fac / *Scr) -7/Scraptown (discovered 2 exits: *Fac x2) -5/Factory (discovered 4 exits: Upp x2 / *Ext x2) -5/Extension (discovered 3 exits: *Fac x2 / *Cet) -5/Cetus (discovered 2 exits: *Fac / *Arc) -5/Archives -5/Hub_04(d) (discovered 2 exits: *Fac x2) -4/Factory -4/Upper Caves -4/Upper Caves (discovered 2 exits: Res / *Zhi) -4/Zhirov -3/Proximity Caves -3/Research -2/Research -1/Access History --------- Turn | Location | Event 18 | -11/Scrapyard | Discovered new exit (range 15) 173 | -11/Scrapyard | Entered Materials 307 | -10/Materials | Build established: Mutant 421 | -10/Materials | Discovered new exit (range 7) 431 | -10/Materials | Discovered new exit (range 16) 1084 | -10/Materials | Core integrity fell below 50% 1195 | -10/Materials | Discovered new exit (range 3) 1303 | -10/Materials | Discovered new exit (range 16) 1371 | -10/Materials | Discovered new exit (range 9) 1456 | -10/Materials | Learned Storage non-interactive machine intel 1522 | -10/Materials | Identified exit to Subcaves 1576 | -10/Materials | Identified exit to Mines 1576 | -10/Materials | Identified exit to Materials 1648 | -10/Materials | Learned Materials stockpile data 1686 | -10/Materials | Learned Materials stockpile data 1733 | -10/Materials | Learned location of 1 exit from Recycling 1784 | -10/Materials | Entered Mines 2151 | -10/Mines | Learned location of Storage (-7) 2159 | -10/Mines | Received a Rocket Launcher from a helpful Derelict 2328 | -10/Mines | A weapon hastily lodged in a ceiling crevice suddenly fell to the ground 2697 | -10/Mines | Found a damaged Exp. Sensor Array with a note attached 2701 | -10/Mines | Found Prototype Device 2753 | -10/Mines | Discovered exit to Materials (range 7) 2774 | -10/Mines | Entered Materials 2774 | -9/Materials | Evolved 2 slots: Utility x1, Weapon x1 3567 | -9/Materials | Discovered new exit (range 13) 3762 | -9/Materials | Discovered new exit (range 6) 3995 | -9/Materials | Build established: Scavenger-Gunner 4184 | -9/Materials | Entered Mines 4230 | -9/Mines | Deemed a non-threat by the Exiles lab entrance 4230 | -9/Mines | Discovered new exit (range 5) 4380 | -9/Mines | Entered Exiles 4438 | -9/Exiles | Met 8R-AWN 4447 | -9/Exiles | Build established: Gunner 4481 | -9/Exiles | Met EX-HEX 4544 | -9/Exiles | Met EX-BIN 4577 | -9/Exiles | Met EX-DEC 4589 | -9/Exiles | Learned location of Zion (-7) 4666 | -9/Exiles | Discovered new exit (range 12) 4798 | -9/Exiles | Entered Mines 5305 | -8/Mines | Build established: Scavenger-Gunner 5492 | -8/Mines | Discovered new exit (range 7) 5558 | -8/Mines | Entered Materials 5558 | -8/Materials | Evolved 2 slots: Propulsion x1, Utility x1 5969 | -8/Materials | Garrison activated, responded to threat 6008 | -8/Materials | Identified Exp. Sensor Array 6055 | -8/Materials | Build established: Gunner 6272 | -8/Materials | Repaired Med. Treads 6318 | -8/Materials | Repaired Hvy. Particle Cannon 6404 | -8/Materials | Central database locked down 6626 | -8/Materials | Destroyed 7 combat bots 6668 | -8/Materials | Discovered new exit (range 16) 6689 | -8/Materials | Learned location of 1 exit from Recycling 6720 | -8/Materials | Learned location of 1 exit from Storage 6740 | -8/Materials | Identified exit to Factory 6751 | -8/Materials | Learned location of 1 exit from Lower Caves 6754 | -8/Materials | Learned Storage security intel 6755 | -8/Materials | Learned 2 Storage zone layouts 6764 | -8/Materials | Learned location of Extension (-5) 6772 | -8/Materials | Entered Factory 6772 | -7/Factory | Evolved 2 slots: Power x1, Utility x1 6773 | -7/Factory | Identified exit to Factory 6960 | -7/Factory | Discovered new exit (range 10) 7609 | -7/Factory | Build established: Tank 7764 | -7/Factory | Cargo convoy interrupted 7864 | -7/Factory | Destroyed 8 combat bots 7893 | -7/Factory | Entered Storage 7897 | -7/Storage | Loaded intel: 30 non-interactive machine locations 8498 | -7/Storage | Assisted by bots powering up and referring to "LRC-V3" 8787 | -7/Storage | Build established: Commander-Tank 9250 | -7/Storage | Used back door to open Recycling access 9250 | -7/Storage | Discovered new exit (range 4) 9263 | -7/Storage | Entered Recycling 9263 | -7/Recycling | Accompanied by 8 allies 9264 | -7/Recycling | Identified exit to Scraptown 9264 | -7/Recycling | Identified exit to Factory 9900 | -7/Recycling | Scanned before Scraplab entrance 10894 | -7/Recycling | Entered Scraplab 10932 | -7/Recycling | Entered Scraptown 10932 | -7/Scraptown | Accompanied by 12 allies 10932 | -7/Scraptown | System corruption cleaned by C-Scrubber 11384 | -7/Scraptown | Discovered exit to Factory (range 5) 11558 | -7/Scraptown | Visited IN-MT5's Study 11627 | -7/Scraptown | Visited Awakened 12059 | -7/Scraptown | Visited TADAMA 12101 | -7/Scraptown | Visited Junk Repository 12165 | -7/Scraptown | Visited Spacefarers 12246 | -7/Scraptown | Visited Fellowship of the Rings 12275 | -7/Scraptown | Visited Cave Peace 12578 | -7/Scraptown | Visited UFD Registry 12578 | -7/Scraptown | Registered with UFD as "Slugguard" 12634 | -7/Scraptown | Visited Science Guys 12776 | -7/Scraptown | Visited Research Penetration Think Tank 13054 | -7/Scraptown | Visited Observation Area 13157 | -7/Scraptown | Visited Derelict Rescue Squad 13180 | -7/Scraptown | Found DRS Beacon 13225 | -7/Scraptown | Visited Analyses Database 13272 | -7/Scraptown | Visited Modified Component R&D 13442 | -7/Scraptown | Visited Science Testing Area 13489 | -7/Scraptown | Visited LU-1G1's Boring Crew 13890 | -7/Scraptown | Found Scrap Suit 13900 | -7/Scraptown | Found Scrap Suit 14315 | -7/Scraptown | Build established: Commander-Scrapper 15239 | -7/Scraptown | Discovered exit to Factory (range 5) 15397 | -7/Scraptown | Met Optimus 15397 | -7/Scraptown | Accepted into 0bPrime 15537 | -7/Scraptown | Entered Factory 15537 | -5/Factory | Accompanied by 12 allies 15537 | -5/Factory | Evolved 4 slots: Propulsion x3, Utility x1 15690 | -5/Factory | Lost 3 allies 15743 | -5/Factory | Identified exit to Upper Caves 15743 | -5/Factory | Identified exit to Extension 15968 | -5/Factory | Lost 7 allies 16198 | -5/Factory | Entered Extension 16198 | -5/Extension | Accompanied by 1 ally 16237 | -5/Extension | Build established: Scrapper 16337 | -5/Extension | Energy Cycler disabled 16337 | -5/Extension | Rescued a captive Derelict 16338 | -5/Extension | Rescued a captive Derelict 16338 | -5/Extension | Rescued a captive Derelict 16338 | -5/Extension | Rescued a captive Derelict 16338 | -5/Extension | Rescued a captive Derelict 16338 | -5/Extension | Rescued a captive Derelict 16339 | -5/Extension | Rescued a captive Derelict 16341 | -5/Extension | Rescued a captive Derelict 16343 | -5/Extension | Rescued a captive Derelict 16344 | -5/Extension | Rescued a captive Derelict 16367 | -5/Extension | Rescued a captive Derelict 16372 | -5/Extension | Rescued a captive Derelict 16451 | -5/Extension | Rescued A7 16809 | -5/Extension | Spotted B-75 Beast 16825 | -5/Extension | Spotted B-75 Beast 16830 | -5/Extension | Discovered new exit (range 14) 16835 | -5/Extension | Destroyed B-75 Beast 16846 | -5/Extension | Destroyed B-75 Beast 16870 | -5/Extension | Lost 4 allies 17123 | -5/Extension | Disrupted transfer network 17154 | -5/Extension | Build established: Scavenger-Scrapper 17207 | -5/Extension | Discovered new exit (range 10) 17208 | -5/Extension | Discovered new exit (range 6) 17276 | -5/Extension | Entered Cetus 17276 | -5/Cetus | Accompanied by 7 allies (A7) 17281 | -5/Cetus | Acquired a Cetus Manufacturing Module code from A7 17296 | -5/Cetus | Spotted Cetus Guard 17296 | -5/Cetus | Spotted Cetus Guard 17299 | -5/Cetus | Spotted Cetus Guard 17303 | -5/Cetus | Destroyed Cetus Guard 17309 | -5/Cetus | Destroyed Cetus Guard 17311 | -5/Cetus | Destroyed Cetus Guard 17312 | -5/Cetus | Spotted Cetus Guard 17317 | -5/Cetus | Destroyed Cetus Guard 17331 | -5/Cetus | Lost 3 allies 17397 | -5/Cetus | Started Cetus Manufacturing Module 17398 | -5/Cetus | System corruption reached 10% 17421 | -5/Cetus | Escorted A7 to Cetus Mainframe 17422 | -5/Cetus | Manufactured an Enhanced Grunt 17447 | -5/Cetus | Manufactured an Enhanced Grunt 17472 | -5/Cetus | Manufactured an Enhanced Grunt 17497 | -5/Cetus | Manufactured an Enhanced Grunt 17522 | -5/Cetus | Manufactured an Enhanced Grunt 17554 | -5/Cetus | Discovered new exit (range 15) 17585 | -5/Cetus | Spotted Cetus Guard 17586 | -5/Cetus | Spotted Cetus Guard 17589 | -5/Cetus | Spotted Cetus Guard 17589 | -5/Cetus | Spotted Cetus Guard 17599 | -5/Cetus | Allies destroyed Cetus Guard 17600 | -5/Cetus | Destroyed Cetus Guard 17605 | -5/Cetus | Allies destroyed Cetus Guard 17610 | -5/Cetus | Allies destroyed Cetus Guard 17618 | -5/Cetus | Discovered new exit (range 15) 17632 | -5/Cetus | Met Revision 17 17763 | -5/Cetus | Entered Archives 17763 | -5/Archives | Accompanied by 10 allies (A7) 17768 | -5/Archives | Received a hacking code to weaken MAIN.C 17852 | -5/Archives | Discovered new exit (range 16) 17928 | -5/Archives | Build established: Scavenger-Tank 17995 | -5/Archives | Unable to access archive contents 18043 | -5/Archives | Entered Hub_04(d) 18043 | -5/Hub_04(d) | Accompanied by 7 allies 18049 | -5/Hub_04(d) | Discovered new exit (range 10) 18058 | -5/Hub_04(d) | Discovered new exit (range 27) 18147 | -5/Hub_04(d) | Network Hub disabled 18153 | -5/Hub_04(d) | Spotted Lightning 18157 | -5/Hub_04(d) | Spotted Lightning 18157 | -5/Hub_04(d) | Spotted Lightning 18194 | -5/Hub_04(d) | Lost 4 allies 18201 | -5/Hub_04(d) | Allies destroyed Lightning 18207 | -5/Hub_04(d) | Allies destroyed Lightning 18218 | -5/Hub_04(d) | Spotted Lightning 18218 | -5/Hub_04(d) | Spotted Lightning 18222 | -5/Hub_04(d) | Spotted Lightning 18224 | -5/Hub_04(d) | Allies destroyed Lightning 18234 | -5/Hub_04(d) | Found Prototype Energy Cannon 18243 | -5/Hub_04(d) | Entered Factory 18243 | -4/Factory | Evolved 2 slots: Utility x2 18701 | -4/Factory | System corruption reached 10% 19156 | -4/Factory | Identified EMDS 19444 | -4/Factory | Build established: Scavenger-Mutant 19444 | -4/Factory | Found Quantum Capacitor 20034 | -4/Factory | Build established: Scavenger-Tank 20081 | -4/Factory | Discovered new exit (range 15) 20134 | -4/Factory | Identified exit to Upper Caves 20141 | -4/Factory | Entered Upper Caves 20409 | -4/Upper Caves | Identified exit to Upper Caves 20515 | -4/Upper Caves | Build established: Scavenger-Skirmisher 20596 | -4/Upper Caves | Entered another Upper Caves area 20613 | -4/Upper Caves | Attracted the attention of an 0b10 base 20692 | -4/Upper Caves | Identified exit to Research 20692 | -4/Upper Caves | Identified exit to Zhirov 20692 | -4/Upper Caves | Learned Extension trap positions 20692 | -4/Upper Caves | Learned Extension garrison access intel 20907 | -4/Upper Caves | Learned 4 Research zone layouts 20926 | -4/Upper Caves | Found Alien Artifact 20926 | -4/Upper Caves | Identified Dimensional Node Initializer 20926 | -4/Upper Caves | Initialized slip node 21141 | -4/Upper Caves | Entered Zhirov 21141 | -4/Zhirov | Discovered new exit (range 3) 21173 | -4/Zhirov | Met Zhirov 21223 | -4/Zhirov | Learned location of Quarantine (-2) 21223 | -4/Zhirov | Learned location of Command (-1) 21239 | -4/Zhirov | Zhirov requested help retrieving the SGEMP Prototype 21266 | -4/Zhirov | Found Alien Artifact 21266 | -4/Zhirov | Identified Transdimensional Reconstructor 21266 | -4/Zhirov | Warped through subspace 21333 | -4/Zhirov | Found Alien Artifact 21333 | -4/Zhirov | Identified Integrated Reactor 21333 | -4/Zhirov | Installed Integrated Reactor, increased core energy generation (+10) 21485 | -4/Zhirov | Identified exit to Proximity Caves 21487 | -4/Zhirov | Entered Proximity Caves 22240 | -3/Proximity Caves | Discovered exit to Research (range 8) 22255 | -3/Proximity Caves | Entered Research 22255 | -3/Research | Evolved 2 slots: Utility x2 22377 | -3/Research | Repaired Hvy. Siege Treads 22455 | -3/Research | Revision forces began assault on 0b10 22535 | -3/Research | System corruption reached 10% 22622 | -3/Research | Met up with Revision 17++ 22765 | -3/Research | Fabricated Assault Drone Bay (x1) 22791 | -3/Research | Build established: Scavenger-Assassin 22955 | -3/Research | Research terminal network offline 22989 | -3/Research | Discovered new exit (range 15) 23063 | -3/Research | Identified exit to Research 23084 | -3/Research | Entered another Research area 23084 | -2/Research | Evolved 2 slots: Power x1, Weapon x1 23445 | -2/Research | Build established: Hacker-Skirmisher 23627 | -2/Research | Spotted B-90 Cyclops 23660 | -2/Research | System corruption reached 10% 23708 | -2/Research | Lost 3 parts (2n1u) 23800 | -2/Research | Discovered new exit (range 12) 23836 | -2/Research | Identified exit to Access 23849 | -2/Research | Entered Access 23849 | -1/Access | Evolved 2 slots: Utility x2 24164 | -1/Access | Build established: Scavenger-Skirmisher 24324 | -1/Access | Destroyed 7 combat bots 24392 | -1/Access | System corruption reached 10% 24393 | -1/Access | Garrison activated, responded to threat 24425 | -1/Access | Self-destructed Last Messages --------------- 24397_ Fusion Reactor destroyed. 24404_ Acquired 56 matter. 24405_ Penetrated by Slug. 24408_ Com. Wheel destroyed. 24410_ Adv. Focal Shield destroyed. 24412_ Com. Wheel destroyed. 24413_ S-43 Plague destroyed. 24413_ Switching to secondary target: P-80 Master. 24416_ Slug penetrates S-43 Plague. 24419_ Adv. KE Penetrator destroyed. 24419_ S-43 Plague suffers critical hit (Smash). 24419_ Destroyed Xenon Bombardment Thruster. 24419_ S-43 Plague system corrupted by crushing effect. 24420_ S-43 Plague IFF system glitched. 24422_ Adv. Heat Sink destroyed. 24422_ Mic. Antimatter Reactor destroyed. 24422_ S-43 Plague knocked back. Map ----- +----------------------------------------------------+ | #### # ? ?? ????? | | #?## + ???????? | | ?### # [[ ? ???? | | #### # [[ ??? ?? | | #### # ?? ? | | ##?# #### = ####### ??#?? | | ?### ## # %* ###### #?##? | | ##?# ## # # ## ## != #???? | | #########+##########+##+####### !! #???# | | ####?#### ######## % # #?? ? | | ######### ######## # #??? | | ##?###### ######## # #? ? | | ######### ######## " ?? ? | | ##?###### ######## # """ ? ? | | ?###?##?# ######## # """ #???? | | ##??##### ###?#### " +???? | | #?###??## ###?#### #? ? | | ??#??##?# #####?## ! #???? | | ?#????### ######## % % #? ?? | | ?????#?## ######## ! ## " " # +??? | | ???????## #?##?### !%! ## " " # # ??? | | ??????#?#?###?############/#####""G""# ##??? | | ???????## ###############"*# #########? ##??? | | ??????###?##?#############!=########## ? ##??? | | ???????? ##??###########%#########?# #???? | | ??????##? @!p ?? ##??? | | ???????# ? ############ #?####?#+#??????? | | ???????#?#####?######## #? ? ?? | | ???????#?#???##?#####?# # ?? ??? | | ????????#####?######### # ? ?"?"" ????? | | ?????????####?######### #? ""?""""" ????? | | ????????????####???#### + """"""""?????? | | ?????????###?#?################### ?? ""??" ?????? | | ?????????################# ?##?#??? ??????? | | ???????????#?##?########??#?#?#?## ?? ??????? | | ??????????????#######??####?###?##?? ? ??????? | | ????????????##?#?##?##?##################????????? | | | | | | | | | | | | | | | | | | | | | | | | | | | +----------------------------------------------------+ Best States ------------- Heat Dissipation 139 Energy Generation 73 Energy Capacity 795 Matter Stores 300 Matter Capacity 300 Sight Range 16 Robot Scan Range 20 Terrain Scan Range 20 Terrain Scan Density 210 Jamming Range 14 Base Temperature (-) 200 Armor Coverage 900 Resistance: KI 30 Phase Shifting 10 Evasion (%) 55 Targeting Accuracy 8 Target Analysis 8 Core Analysis 6 Recoil Reduction 6 Salvage Targeting 2 Offensive Hacking 24 Defensive Hacking 14 Authchip Count 1 Item Schematics ----------------- Hcp. Storage Unit | -10/Materials | Hacked Cryofiber Web | -8/Materials | Scanalyzed Lightning Gun | -7/Storage | Hacked Wave Gun | -7/Storage | Hacked Magnetic Acceleration Cannon | -7/Storage | Hacked Assault Drone Bay | -4/Zhirov | Free Exp. Heat Sink | -4/Zhirov | Free Exp. Optical Array | -4/Zhirov | Free Imp. Arc Thrower | -4/Zhirov | Free Biometal Heavy Treads | -2/Research | Hacked Robot Schematics ------------------ None Fabricated ------------ Assault Drone Bay | x1 | -3/Research Repaired ---------- Med. Treads | 53% | -8/Materials Hvy. Particle Cannon | 63% | -8/Materials Hvy. Siege Treads | 2% | -3/Research Alien Tech Used ----------------- Dimensional Node Initializer Transdimensional Reconstructor Integrated Reactor Achievements -------------- Overkill Challenges ------------ None Game ------ Seed ShadingTachyonSuite Manual? 0 Play Time 04:45:05 Cumulative 102.0 hours Start 2025.09.27 @ 15:49:30 End 2025.10.01 @ 22:25:16 Sessions 20 Manual Loads 0 Difficulty Rogue Special Mode None Game No. 57 Rogue 52 Adventurer 5 Explorer 0 Win Type - Total 2 Types 2/0/0/0/0/0/0/0/0/0 Lore% 52 Gallery% 55 Achievement% 50 Wizard Run 0 Options --------- Layout 1 ASCII 0 Keyboard 0 Movement Numpad Keybinds 0 Fullscreen 1 Font 24/Smallcaps Map View 50x35 Zoom Use 0% Tactical HUD 1 Map Filters NONE Filters NONE Steam 1 RUN: 9ce490b4-4b2a-46df-8c69-1e4a8ccebc6e